bitfinex/quotes_ETHUSD_20251028
["timestamp","ask_amount","ask_price","bid_price","bid_amount"]
[1761666977942,2.56219339,4097.7,4097.6,3.7666]
[1761666979974,0.0002,4097.7,4097.6,3.7666]
[1761666980268,0.001,4097.9,4097.8,8.16543783]
[1761666980773,0.001,4097.9,4097.8,8.59803783]
[1761666980925,0.001,4097.9,4097.8,15.12963783]
[1761666981354,0.0002,4097.9,4097.8,15.12963783]
[1761666981557,0.0002,4097.9,4097.8,14.69703783]
[1761666981758,0.0002,4097.9,4097.8,14.03272106]
[1761666982128,0.0002,4097.9,4097.8,16.90565489]
[1761666982874,0.0002,4097.9,4097.8,14.03272106]
[1761666983659,0.0002,4097.9,4097.8,16.47305489]
[1761666983857,0.0002,4097.9,4097.8,16.90565489]
[1761666984363,0.0002,4097.9,4097.8,10.49565489]
[1761666987562,0.0002,4097.9,4097.8,3.45281706]
[1761666987762,0.0002,4097.9,4097.8,2.082304]
[1761666988228,0.0002,4097.9,4097.8,4.52263783]
[1761666988428,0.0002,4097.9,4097.8,2.514904]
[1761666988659,0.0002,4097.9,4097.8,4.95523783]
[1761666991372,0.0002,4097.9,4097.8,8.71963783]
[1761666991873,0.0002,4097.9,4097.8,11.07618313]
[1761666992778,0.227,4099.5,4098.8,0.405504]
[1761666992959,2.43971259,4099.2,4098.9,4.156704]
[1761666993154,2.43956383,4099.1,4098.9,4.156704]
[1761666994060,2.89001941,4099.0,4098.9,4.156704]
[1761666994442,0.001,4099.0,4098.9,4.156704]
[1761666995176,3.11559688,4099.0,4098.9,3.7512]
[1761666997158,2.43979798,4098.7,4098.6,3.7512]
[1761666997589,2.87069798,4098.7,4098.6,3.7512]
[1761666997766,2.43979798,4098.7,4098.6,3.7512]
[1761666997972,2.87069798,4098.7,4098.6,3.7512]
[1761666999475,3.44996773,4098.7,4098.6,3.7512]
[1761666999682,2.43994859,4098.5,4097.8,0.002]
[1761666999879,2.44027428,4097.9,4097.8,0.002]
[1761667000108,2.44027428,4097.9,4097.8,1.5572]
[1761667001000,2.4401727,4098.1,4097.8,1.5572]
[1761667001300,2.44010251,4098.2,4097.8,1.5572]
[1761667001664,0.4309,4098.3,4097.8,1.5572]
[1761667001665,2.44020019,4098.1,4097.8,1.5572]
[1761667001893,2.87095022,4098.3,4097.8,1.5572]
[1761667002094,0.4309,4098.2,4097.8,1.5572]
[1761667002901,2.44026233,4098.0,4097.9,3.7512]
[1761667003092,0.4309,4098.2,4097.9,3.7512]
[1761667003318,2.44018052,4098.1,4097.9,3.7512]
[1761667003480,2.44021473,4098.0,4097.9,3.7512]
[1761667004005,2.44017759,4098.1,4097.9,3.7512]
[1761667004566,2.44021473,4098.0,4097.9,3.7512]
[1761667004773,2.44021473,4098.0,4097.8,0.002]
[1761667004973,2.44017715,4098.1,4097.8,0.002]
[1761667005391,2.44011048,4098.2,4097.8,0.002]
[1761667005796,2.43936311,4098.1,4097.8,0.002]
[1761667006506,2.87110811,4098.1,4097.8,0.002]
[1761667006810,2.44021701,4098.0,4097.8,0.002]
[1761667007578,2.87107302,4098.1,4097.8,0.002]
[1761667007775,2.44017302,4098.1,4097.8,0.002]
[1761667008583,0.4309,4098.1,4097.8,0.002]
[1761667008785,2.44014873,4098.2,4097.9,3.78]
[1761667009170,2.44015775,4098.1,4097.9,3.78]
[1761667009903,2.44021473,4098.0,4097.9,3.78]
[1761667010210,2.87111473,4098.0,4097.9,3.78]
[1761667010706,3.41439704,4098.0,4097.9,3.78]
[1761667010915,2.44027428,4097.9,4097.8,0.002]
[1761667011098,3.10837428,4097.9,4097.8,0.002]
[1761667011818,7.75428781,4097.9,4097.8,0.002]
[1761667012001,9.07207714,4097.9,4097.8,0.002]
[1761667015131,4.42616361,4097.9,4097.8,0.002]
[1761667016109,9.07207714,4097.9,4097.8,0.002]
[1761667020322,9.07207714,4097.9,4097.6,0.002]
[1761667020323,2.56193383,4097.8,4097.6,1e-08]
[1761667020524,2.44039339,4097.7,4097.6,1e-08]
[1761667020690,2.44081034,4097.0,4096.9,0.002]
[1761667020885,7.08672387,4097.0,4096.9,0.002]
[1761667021083,7.51762387,4097.0,4096.9,0.002]
[1761667021818,2.87171034,4097.0,4096.9,0.002]
[1761667022116,3.40295469,4097.0,4096.9,0.002]
[1761667025817,4.95815469,4097.0,4096.9,0.002]
[1761667027446,4.95815469,4097.0,4095.8,0.002]
[1761667027447,3.99648704,4096.2,4096.1,1e-08]
[1761667027806,2.89928704,4096.2,4096.1,1e-08]
[1761667028002,0.2356,4096.7,4096.1,1e-08]
[1761667028337,0.2356,4096.7,4096.1,0.13040001]
[1761667028526,2.44122692,4096.4,4096.1,0.13040001]
[1761667028708,2.44104867,4096.6,4096.1,0.13040001]
[1761667028905,0.2356,4096.7,4096.1,1e-08]
[1761667029114,2.44121789,4096.4,4096.1,1e-08]
[1761667029638,0.2356,4096.7,4096.1,1e-08]
[1761667030169,0.01,4097.4,4096.2,0.1304]
[1761667030340,0.01,4097.4,4096.5,1.960704]
[1761667030638,2.44185071,4097.0,4096.2,0.1304]
[1761667030938,0.1216,4096.4,4096.2,0.1304]
[1761667031314,2.5628147,4096.4,4096.1,0.00200001]
[1761667032317,0.1216,4096.4,4096.1,0.00200001]
[1761667032516,2.44128704,4096.2,4096.1,0.00200001]
[1761667034317,0.4507,4096.8,4096.1,0.00200001]
[1761667034515,2.44123257,4096.3,4096.1,0.00200001]
[1761667034827,2.44128704,4096.2,4096.1,0.00200001]
[1761667036553,0.4507,4096.7,4096.1,0.00200001]
[1761667037258,2.44128704,4096.2,4096.1,0.00200001]
[1761667037428,2.44181053,4097.0,4096.2,0.1312]
[1761667037429,0.001,4097.0,4096.2,0.1312]
[1761667037631,0.677,4096.9,4096.1,2.01633201]
[1761667037828,2.44115545,4096.5,4096.1,2.01633201]
[1761667039050,3.11787623,4096.9,4096.1,2.01633201]
[1761667039251,0.677,4096.9,4096.1,2.01633201]
[1761667039660,0.677,4096.9,4096.2,0.1312]
[1761667039661,2.44122483,4096.4,4096.2,0.1312]
[1761667039819,2.44122744,4096.3,4096.2,0.1312]
[1761667040143,2.44122744,4096.3,4096.1,2.01633201]
[1761667040318,2.44104796,4096.7,4096.1,2.01633201]
[1761667040522,0.4507,4096.7,4096.1,2.01633201]
[1761667040722,2.44126925,4096.3,4096.1,2.01633201]
[1761667041364,2.44118236,4096.4,4096.1,2.01633201]
[1761667042478,0.1216,4096.2,4096.1,5.79633201]
[1761667044380,0.1216,4096.2,4096.1,5.92753201]
[1761667045744,0.1216,4096.2,4096.1,5.79633201]
[1761667046676,3.01358704,4096.2,4096.1,5.79633201]
[1761667046975,3.01358704,4096.2,4096.1,2.01633201]
[1761667048679,3.55906347,4096.2,4096.1,2.01633201]
[1761667049055,3.10836347,4096.2,4096.1,2.01633201]
[1761667049790,0.66707643,4096.2,4096.1,2.01633201]
[1761667050097,3.10836347,4096.2,4096.1,2.01633201]
[1761667050453,3.55906347,4096.2,4096.1,2.01633201]
[1761667051202,2.98676347,4096.2,4096.1,2.01633201]
[1761667051553,2.44128704,4096.2,4096.1,2.01633201]
[1761667052058,2.89198704,4096.2,4096.1,2.01633201]
[1761667053080,2.44146585,4095.9,4095.8,0.002]
[1761667053255,8.09215158,4095.9,4095.8,0.002]
[1761667053572,8.54285158,4095.9,4095.8,0.002]
[1761667053950,3.44525022,4095.9,4095.8,0.002]
[1761667054155,2.44139077,4096.1,4095.8,0.002]
[1761667054355,2.44146585,4095.9,4095.8,0.002]
[1761667054849,2.44066585,4095.9,4095.8,0.002]
[1761667055051,2.87206585,4095.9,4095.8,0.002]
[1761667055492,2.44066585,4095.9,4095.8,0.002]
[1761667055663,3.40341132,4095.9,4095.8,0.002]
[1761667059901,0.2263,4096.3,4095.8,0.002]
[1761667060085,2.44146585,4095.9,4095.8,0.002]
[1761667062806,2.87286585,4095.9,4095.8,0.002]
[1761667065401,9.07496721,4095.9,4095.8,0.002]
[1761667066788,9.07596721,4095.9,4095.8,0.002]
[1761667066986,10.22770294,4095.9,4095.8,0.002]
[1761667067721,4.02560158,4095.9,4095.8,0.002]
[1761667068610,3.59420158,4095.9,4095.8,0.002]
[1761667068816,2.44246585,4095.9,4095.8,0.002]
[1761667073606,0.001,4095.9,4095.8,0.002]
[1761667073801,2.44246585,4095.9,4095.8,0.002]
[1761667078823,2.87386585,4095.9,4095.8,0.002]
[1761667079231,2.44166585,4095.9,4095.8,0.002]
[1761667080537,8.94060754,4095.9,4095.8,0.002]
[1761667080900,2.44164469,4095.6,4095.5,1e-08]
[1761667081326,2.87304469,4095.6,4095.5,1e-08]
[1761667083938,2.44164469,4095.6,4095.5,1e-08]
[1761667084628,0.0002,4095.9,4095.5,1e-08]
[1761667084830,0.1216,4095.6,4095.5,0.44510001]
[1761667085029,0.0002,4095.9,4095.5,0.44510001]
[1761667085542,0.0002,4095.9,4095.6,0.20523]
[1761667086040,0.0002,4095.9,4095.7,0.4451]
[1761667086618,0.0002,4095.9,4095.8,3.99672546]
[1761667087049,0.0002,4095.9,4095.8,2.88662546]
[1761667088924,0.0002,4095.9,4095.8,2.0003]
[1761667089253,0.0002,4095.9,4095.8,2.01991103]
[1761667089458,0.0002,4095.9,4095.8,2.0202]
[1761667089626,0.0002,4095.9,4095.8,4.46172546]
[1761667092354,0.0002,4095.9,4095.8,1.5552]
[1761667092762,0.0002,4095.9,4095.8,4.46172546]
[1761667095167,0.0002,4095.9,4095.8,4.86722946]
[1761667095364,0.0002,4095.9,4095.8,5.63079925]
[1761667096461,0.0002,4095.9,4095.8,5.72842534]
[1761667098245,0.001,4096.4,4096.3,17.06186114]
[1761667098474,0.001,4096.4,4096.3,19.08206114]
[1761667101381,0.001,4096.4,4096.3,19.17967223]
[1761667101587,0.001,4096.4,4096.3,21.35489049]
[1761667103588,0.001,4096.4,4096.3,7.13976079]
[1761667103788,0.0002,4096.4,4096.3,4.96454253]
[1761667105691,0.0002,4096.4,4096.3,2.90622744]
[1761667106078,0.0002,4096.4,4096.3,3.02782744]
[1761667106479,0.0002,4096.4,4096.3,3.43333144]
[1761667107767,0.0002,4096.4,4096.3,10.56114786]
[1761667107992,0.0002,4096.4,4096.3,12.03003676]
[1761667108194,0.0002,4096.4,4096.3,12.27423676]
[1761667109592,0.0002,4096.4,4096.3,12.37185261]
[1761667111615,0.0002,4096.4,4096.3,6.79923619]
[1761667111761,0.0002,4096.4,4096.3,12.12765261]
[1761667114162,0.0002,4096.4,4096.3,12.03003676]
[1761667114795,0.0002,4096.4,4096.3,12.27423676]
[1761667116900,0.0002,4096.4,4096.3,12.37185261]
[1761667117606,0.001,4096.8,4096.7,3.09069308]
[1761667117762,0.001,4096.8,4096.7,10.2185095]
[1761667117969,0.001,4096.8,4096.7,10.7905095]
[1761667118166,0.001,4096.8,4096.7,10.3401095]
[1761667119797,0.001,4096.8,4096.7,10.7905095]
[1761667119999,0.001,4096.8,4096.7,11.10367929]
[1761667121296,0.001,4096.8,4096.7,10.85947929]
[1761667122301,0.001,4096.8,4096.7,4.52329308]
[1761667124785,0.6942,4096.8,4096.7,4.52329308]
[1761667124983,0.001,4096.8,4096.7,4.52329308]
[1761667125471,0.001,4096.8,4096.7,4.97369308]
[1761667125676,0.001,4096.8,4096.7,4.85209308]
[1761667125902,0.001,4096.8,4096.7,6.24850134]
[1761667126501,0.001,4096.8,4096.7,6.34611052]
[1761667128274,0.0002,4096.8,4096.7,6.34611052]
[1761667129801,0.0002,4096.8,4096.7,10.53888856]
[1761667130107,0.0002,4096.8,4096.7,10.98928856]
[1761667130309,0.0002,4096.8,4096.7,15.6324666]
[1761667130685,0.0002,4096.8,4096.7,10.98928856]
[1761667132694,0.0002,4096.8,4096.7,10.53888856]
[1761667133016,0.0002,4096.8,4096.7,10.44127938]
[1761667135309,0.0002,4096.8,4096.7,15.53485742]
[1761667135817,0.0002,4096.8,4096.7,15.65645742]
[1761667136399,0.0002,4096.8,4096.7,10.56287938]
[1761667139443,0.6934,4096.8,4096.6,0.002]
[1761667139893,0.4685,4096.7,4096.6,1.962704]
[1761667140094,0.4685,4096.7,4096.6,0.407504]
[1761667140327,0.4685,4096.7,4096.6,0.002]
[1761667140527,2.90948908,4096.7,4096.6,0.002]
[1761667140828,1.02622596,4096.7,4096.6,0.002]
[1761667141339,0.4685,4096.7,4096.6,0.002]
[1761667141691,0.2249,4096.8,4096.7,1.5552]
[1761667141918,0.6934,4096.8,4096.7,1.57960989]
[1761667142317,0.6934,4096.8,4096.7,1.5552]
[1761667142721,0.6934,4096.8,4096.7,1.960704]
[1761667142936,0.6934,4096.8,4096.7,0.405504]
[1761667143422,1.00701953,4096.8,4096.6,0.002]
[1761667143631,2.90948908,4096.7,4096.6,0.002]
[1761667143809,0.4685,4096.7,4096.6,0.002]
[1761667144988,2.90948908,4096.7,4096.6,0.002]
[1761667146525,0.4685,4096.7,4096.6,0.002]
[1761667147525,2.90948908,4096.7,4096.6,0.002]
[1761667147731,3.46721513,4096.7,4096.6,0.002]
[1761667148029,8.11039317,4096.7,4096.6,0.002]
[1761667149310,3.46721513,4096.7,4096.6,0.002]
[1761667150466,8.11039317,4096.7,4096.6,0.002]
[1761667152451,3.46721513,4096.7,4096.6,0.002]
[1761667152816,3.46641513,4096.7,4096.6,0.002]
[1761667157467,8.10959317,4096.7,4096.1,0.0225011]
[1761667157672,9.51235608,4095.9,4095.2,0.002]
[1761667157869,7.08500159,4095.3,4095.2,0.002]
[1761667158161,8.0376764,4095.3,4095.2,0.002]
[1761667158463,8.4735764,4095.3,4095.2,0.002]
[1761667158664,3.83039836,4095.3,4095.2,0.002]
[1761667158840,8.4735764,4095.3,4095.2,0.002]
[1761667159252,3.83039836,4095.3,4095.2,0.002]
[1761667162784,8.4735764,4095.3,4095.2,0.002]
[1761667165842,3.83039836,4095.3,4095.2,0.002]
[1761667169506,8.4735764,4095.3,4095.2,0.002]
[1761667169965,3.83039836,4095.3,4095.2,0.002]
[1761667170166,8.4735764,4095.3,4095.2,0.002]
[1761667170962,3.83039836,4095.3,4095.2,0.002]
[1761667172302,2.44182355,4095.3,4095.2,0.002]
[1761667175916,2.44282355,4095.3,4095.2,0.002]
[1761667176418,0.001,4095.3,4095.2,0.002]
[1761667176617,0.001,4095.3,4095.2,0.6092]
[1761667176797,0.001,4095.3,4095.2,0.1623]
[1761667177002,0.001,4095.3,4095.2,0.6887378]
[1761667177322,0.0002,4095.3,4095.2,0.1623]
[1761667177480,2.44202355,4095.3,4095.2,0.1623]
[1761667178177,0.0002,4095.3,4095.2,0.6092]
[1761667178626,0.0002,4095.3,4095.2,2.1644]
[1761667179183,0.0002,4095.3,4095.2,2.569904]
[1761667179375,0.0002,4095.3,4095.2,5.85589538]
[1761667180311,0.0002,4095.3,4095.2,3.4140122]
[1761667180688,0.0002,4095.3,4095.2,5.85589538]
[1761667181322,0.0002,4095.3,4095.2,10.37747342]
[1761667182701,0.0002,4095.3,4095.2,5.73429538]
[1761667183291,0.0002,4095.3,4095.2,5.32879138]
[1761667183694,0.0002,4095.3,4095.2,10.37747342]
[1761667185114,0.0002,4095.3,4095.2,5.73429538]
[1761667185315,0.0002,4095.3,4095.2,10.37747342]
[1761667185610,0.0002,4095.3,4095.2,5.73429538]
[1761667185814,0.0002,4095.3,4095.2,10.37747342]
[1761667186002,0.0002,4095.3,4095.2,6.36067804]
[1761667186202,0.0002,4095.3,4095.2,9.65496522]
[1761667186419,0.0002,4095.3,4095.2,6.36067804]
[1761667186615,0.0002,4095.3,4095.2,6.76618204]
[1761667186817,0.0002,4095.3,4095.2,9.20806522]
[1761667187029,0.0002,4095.3,4095.2,10.57697174]
[1761667188591,0.0002,4095.3,4095.2,10.13007174]
[1761667188801,0.0002,4095.3,4095.2,7.68818856]
[1761667189000,0.0002,4095.3,4095.2,10.57697174]
[1761667191226,0.0002,4095.3,4095.2,7.80978856]
[1761667191396,0.0002,4095.3,4095.2,6.72748204]
[1761667191602,0.0002,4095.3,4095.2,9.16936522]
[1761667191836,0.0002,4095.3,4095.2,2.084304]
[1761667192440,0.0002,4095.3,4095.2,2.531204]
[1761667192635,0.0002,4095.3,4095.2,4.97308718]
[1761667192865,0.0002,4095.3,4095.2,6.28956337]
[1761667193053,0.0002,4095.3,4095.2,3.84768019]
[1761667193543,0.0002,4095.3,4095.2,3.40078019]
[1761667193946,0.0002,4095.3,4095.2,1.962704]
[1761667195412,0.4298,4095.3,4095.2,1.962704]
[1761667195611,2.87162355,4095.3,4095.2,1.962704]
[1761667195848,2.87162355,4095.3,4095.2,0.002]
[1761667197138,0.0002,4095.3,4095.2,0.002]
[1761667197635,0.0002,4095.3,4095.2,0.1623]
[1761667197812,0.0002,4095.3,4095.2,0.002]
[1761667199550,2.44202355,4095.3,4095.2,0.002]
[1761667200663,0.0002,4095.3,4095.2,0.002]
[1761667201653,0.429,4095.6,4095.2,0.002]
[1761667201878,0.001,4095.8,4095.2,0.002]
[1761667203770,2.44182355,4095.3,4095.2,0.002]
[1761667203983,2.68600591,4095.3,4095.2,0.002]
[1761667204325,3.11560591,4095.3,4095.2,0.002]
[1761667204621,2.87438318,4095.2,4095.1,1e-08]
[1761667205650,2.66206029,4094.4,4094.3,1e-08]
[1761667206021,3.09456029,4094.4,4094.3,1e-08]
[1761667206236,1.33112092,4094.4,4094.3,1e-08]
[1761667206562,0.2197,4095.4,4094.5,0.405504]
[1761667206962,0.4325,4095.3,4094.3,0.40550401]
[1761667207164,0.2197,4095.4,4094.6,1.960704]
[1761667207366,2.44175753,4095.5,4094.6,1.960704]
[1761667207574,2.44177714,4095.4,4094.6,5.6890427]
[1761667207727,0.4325,4095.5,4094.8,0.405504]
[1761667207934,0.4325,4095.5,4094.7,0.405504]
[1761667208137,0.001,4095.8,4095.0,1.960704]
[1761667208456,0.6532,4095.8,4095.0,0.405504]
[1761667208659,0.962656,4095.8,4095.0,0.405504]
[1761667208829,2.44180578,4095.4,4095.0,0.405504]
[1761667209032,2.87433067,4095.3,4094.4,1.5552]
[1761667209268,2.44193886,4095.2,4094.5,0.405504]
[1761667209564,2.88780002,4095.2,4094.5,0.405504]
[1761667209770,2.88779292,4095.2,4094.5,0.405504]
[1761667209967,0.4459,4095.1,4094.5,0.405504]
[1761667210146,2.44204529,4095.0,4094.5,0.407504]
[1761667210469,2.44201848,4095.0,4094.5,0.407504]
[1761667210699,2.88796979,4094.9,4094.5,0.407504]
[1761667210872,0.97888847,4094.9,4094.5,0.002]
[1761667211165,2.44218468,4094.7,4094.5,0.002]
[1761667211537,2.888141,4094.6,4094.5,0.002]
[1761667212555,4.443341,4094.6,4094.5,0.002]
[1761667212760,2.888141,4094.6,4094.5,0.002]
[1761667216794,2.442241,4094.6,4094.5,0.002]
[1761667217584,2.888141,4094.6,4094.5,0.002]
[1761667219165,3.42116744,4094.6,4094.5,0.002]
[1761667220268,0.1216,4094.6,4094.5,0.002]
[1761667220579,0.001,4095.3,4094.6,0.405504]
[1761667220766,0.001,4095.3,4094.8,0.405504]
[1761667220972,0.001,4095.3,4095.2,0.1609]
[1761667221172,0.001,4095.3,4095.2,0.688004]
[1761667221369,0.001,4095.3,4095.2,3.93986516]
[1761667221570,0.001,4095.3,4095.2,5.47064633]
[1761667221806,0.001,4095.3,4095.2,3.02876315]
[1761667222026,0.001,4095.3,4095.2,1.6768]
[1761667222399,2.44282355,4095.3,4095.2,1.5552]
[1761667222740,2.44188318,4095.2,4094.5,0.002]
[1761667222887,2.442241,4094.6,4094.5,0.002]
[1761667224457,0.1216,4094.8,4094.5,0.002]
[1761667224730,0.001,4095.3,4094.6,0.405504]
[1761667224887,0.001,4095.3,4094.8,0.405504]
[1761667225087,0.001,4095.3,4094.9,0.1216]
[1761667225302,0.001,4095.3,4094.9,0.5512]
[1761667225590,0.001,4095.3,4095.2,0.688004]
[1761667225823,0.001,4095.3,4094.5,0.002]
[1761667226124,2.44223634,4094.7,4094.5,0.002]
[1761667226327,2.44223633,4094.7,4094.5,0.002]
[1761667226496,2.442241,4094.6,4094.5,0.002]
[1761667228227,2.888141,4094.6,4094.5,0.002]
[1761667229397,2.442241,4094.6,4094.5,0.002]
[1761667231748,2.888141,4094.6,4094.5,0.002]
[1761667232124,3.42116741,4094.6,4094.5,0.002]
[1761667232332,2.442241,4094.6,4094.5,0.002]
[1761667232519,0.4459,4095.2,4094.5,0.002]
[1761667233099,2.442241,4094.6,4094.5,0.002]
[1761667233354,2.44218001,4094.8,4094.5,0.002]
[1761667233572,2.44222828,4094.7,4094.5,0.002]
[1761667233852,0.24527097,4095.3,4094.5,0.002]
[1761667234016,0.001,4095.3,4095.2,0.1609]
[1761667234215,0.001,4095.3,4095.2,0.996004]
[1761667234415,0.001,4095.3,4095.2,5.49241365]
[1761667235859,0.001,4095.3,4095.2,5.71164618]
[1761667238767,0.001,4095.3,4095.2,5.20850965]
[1761667239277,0.001,4095.3,4095.2,5.61401365]
[1761667239431,0.001,4095.3,4095.2,3.65330965]
[1761667239763,0.001,4095.3,4095.2,3.22370965]
[1761667240060,0.001,4095.3,4095.2,3.68850965]
[1761667240259,0.001,4095.3,4095.2,9.11370965]
[1761667240759,0.001,4095.3,4095.2,6.04612647]
[1761667240972,0.001,4095.3,4095.2,4.397104]
[1761667241179,0.001,4095.3,4095.2,3.9916]
[1761667241680,0.001,4095.3,4095.2,5.5468]
[1761667241978,0.001,4095.3,4095.2,4.86738718]
[1761667242272,0.001,4095.3,4095.2,5.1496158]
[1761667242685,0.001,4095.3,4095.2,5.6144158]
[1761667248973,0.001,4095.3,4095.2,5.1496158]
[1761667249174,0.001,4095.3,4095.2,5.6144158]
[1761667250578,0.0002,4095.3,4095.2,5.6144158]
[1761667251878,0.0002,4095.3,4095.2,5.7360158]
[1761667252175,0.0002,4095.3,4095.2,5.2712158]
[1761667254203,0.0002,4095.3,4095.2,5.7360158]
[1761667255366,0.0002,4095.3,4095.2,5.3305118]
[1761667255568,0.0002,4095.3,4095.2,5.7360158]
[1761667256606,0.01,4096.4,4096.3,8.26973144]
[1761667260975,0.01,4096.4,4096.3,8.73453144]
[1761667261185,0.01,4096.4,4096.3,8.26973144]
[1761667263067,0.01,4096.4,4096.3,5.828504]
[1761667263268,0.01,4096.4,4096.3,5.423]
[1761667263269,0.4758,4096.4,4096.3,5.423]
[1761667264118,0.4768,4096.4,4096.3,5.423]
[1761667264408,0.011,4096.4,4096.3,5.828504]
[1761667264776,0.011,4096.4,4096.3,9.09672196]
[1761667265377,0.4678,4096.4,4096.3,5.828504]
[1761667265577,0.4678,4096.4,4096.3,5.423]
[1761667265874,0.4678,4096.4,4095.9,3.8678]
[1761667266088,0.4678,4096.4,4095.5,3.8678]
[1761667266488,0.2182,4095.6,4095.5,5.423]
[1761667266699,0.2182,4095.6,4095.5,5.828504]
[1761667266999,0.675,4095.6,4095.5,5.5446]
[1761667267688,3.11664469,4095.6,4095.5,5.5446]
[1761667267881,3.67246206,4095.6,4095.5,3.9894]
[1761667268321,3.11664469,4095.6,4095.5,3.9894]
[1761667269020,3.11664469,4095.6,4095.1,0.002]
[1761667269021,2.44188318,4095.2,4095.1,0.002]
[1761667269336,0.4437,4095.2,4095.1,0.002]
[1761667269500,0.4437,4095.2,4095.1,0.1236]
[1761667270622,2.88558318,4095.2,4095.1,0.1236]
[1761667270777,0.4437,4095.2,4095.1,0.1236]
[1761667271419,0.222,4095.7,4095.2,2.84733833]
[1761667271648,2.44142726,4096.0,4095.4,0.405504]
[1761667271861,0.4437,4096.1,4095.1,0.1629]
[1761667272025,0.4547,4096.4,4095.9,0.1216]
[1761667272535,2.44134876,4096.1,4095.9,0.1216]
[1761667273066,2.88510625,4096.0,4095.9,0.1216]
[1761667273218,0.4437,4096.0,4095.9,0.1216]
[1761667273668,2.88510625,4096.0,4095.9,0.1216]
[1761667273979,0.4437,4096.0,4095.9,3.9794]
[1761667275161,0.4429,4096.0,4095.9,3.9794]
[1761667275329,2.44138246,4096.1,4095.9,3.9794]
[1761667275537,2.44140625,4096.0,4095.9,3.9794]
[1761667275922,0.011,4096.4,4095.9,3.9794]
[1761667276319,0.011,4096.4,4096.0,0.405504]
[1761667276524,0.011,4096.4,4096.3,0.1216]
[1761667277922,0.011,4096.4,4096.3,0.527104]
[1761667278130,0.011,4096.4,4096.3,19.4247774]
[1761667278445,0.011,4096.4,4096.3,20.71244716]
[1761667278843,0.011,4096.4,4096.3,6.16638401]
[1761667279058,0.011,4096.4,4096.3,4.85430198]
[1761667279350,0.011,4096.4,4096.3,2.41307454]
[1761667279771,0.011,4096.4,4096.3,4.85430198]
[1761667280887,0.02775,4096.8,4096.7,4.40169308]
[1761667281049,0.02775,4096.8,4096.7,2.80049994]
[1761667281245,0.02775,4096.8,4096.7,5.24148902]
[1761667285050,0.02775,4096.8,4096.7,5.69328902]
[1761667285676,0.02775,4096.8,4096.7,5.28778502]
[1761667286113,0.02775,4096.8,4096.7,5.69328902]
[1761667286675,0.02775,4096.8,4096.7,5.24148902]
[1761667287173,0.69345,4096.8,4096.7,2.80049994]
[1761667287395,0.69345,4096.8,4096.7,1.960704]
[1761667287614,0.02775,4096.8,4096.7,4.40169308]
[1761667288101,0.02775,4096.8,4096.7,4.52329308]
[1761667289181,0.02775,4096.8,4096.7,4.11778908]
[1761667289519,0.02775,4096.8,4096.7,4.99950297]
[1761667289702,0.001,4097.3,4097.2,4.4013952]
[1761667290077,0.001,4097.3,4097.2,1.960704]
[1761667291318,0.4447,4097.3,4097.2,1.960704]
[1761667292318,0.4447,4097.3,4097.2,1.5552]
[1761667292982,0.001,4097.3,4097.2,1.5552]
[1761667294286,0.001,4097.3,4097.2,1.960704]
[1761667294494,0.001,4097.5,4097.4,4.232304]
[1761667294720,0.001,4097.5,4097.4,8.22807607]
[1761667295213,0.001,4097.5,4097.4,8.67907607]
[1761667296516,0.001,4097.9,4097.7,2.84589739]
[1761667296810,0.001,4097.9,4097.8,4.40103783]
[1761667297009,0.01,4098.4,4097.8,4.40103783]
[1761667297010,0.01,4098.4,4098.1,4.40085919]
[1761667297214,0.01,4098.4,4098.1,5.02875919]
[1761667297982,0.01,4098.4,4098.1,4.40085919]
[1761667298406,0.01,4098.4,4098.1,4.85185919]
[1761667298814,0.001,4097.8,4097.6,1.30864764]
[1761667299130,0.2315,4097.7,4096.6,1.30864764]
[1761667299417,0.001,4097.8,4097.2,14.09426315]
[1761667299605,0.0002,4097.8,4097.3,1.5552]
[1761667299805,0.0002,4097.8,4097.7,0.1216]
[1761667300018,0.4452,4097.8,4097.7,0.1216]
[1761667300517,0.0002,4097.8,4097.7,0.1216]
[1761667300887,0.4452,4097.8,4097.7,0.527104]
[1761667302137,0.0002,4097.8,4097.7,0.527104]
[1761667302313,0.4452,4097.8,4097.7,0.527104]
[1761667302904,0.0002,4097.8,4097.7,0.527104]
[1761667303824,0.0002,4097.8,4097.7,5.909104]
[1761667306207,0.0002,4097.8,4097.7,8.34949739]
[1761667306407,0.0002,4097.8,4097.7,5.909104]
[1761667306614,0.0002,4097.8,4097.7,9.18444748]
[1761667306840,0.0002,4097.8,4097.7,6.74405409]
[1761667307642,0.0002,4097.8,4097.7,9.18444748]
[1761667307835,0.0002,4097.8,4097.7,6.74405409]
[1761667308012,0.0002,4097.8,4097.7,5.909104]
[1761667308727,0.0002,4097.8,4097.7,8.34949739]
[1761667308921,0.0002,4097.8,4097.7,5.909104]
[1761667309352,0.0002,4097.8,4097.7,8.34949739]
[1761667309658,0.0002,4097.8,4097.7,5.909104]
[1761667310019,0.4452,4097.8,4097.7,5.5036]
[1761667310439,0.0002,4097.8,4097.7,5.5036]
[1761667310645,0.4452,4097.8,4097.7,5.909104]
[1761667311151,0.0002,4097.8,4097.7,5.909104]
[1761667312575,0.0002,4097.8,4097.7,8.34949739]
[1761667312938,0.0002,4097.8,4097.7,9.42849808]
[1761667313938,0.001,4098.2,4098.1,1.960704]
[1761667314137,0.001,4098.2,4098.1,4.52245919]
[1761667315254,0.001,4098.2,4098.1,2.082304]
[1761667315464,0.001,4098.2,4098.1,4.52245919]
[1761667315634,0.001,4098.2,4098.1,2.082304]
[1761667315959,0.446,4098.2,4098.1,1.960704]